bitfinex/quotes_ETHUSD_20250616
["timestamp","ask_amount","ask_price","bid_price","bid_amount"]
[1750053105538,1.3571,2611.5,2610.9,0.1912]
[1750053105539,0.1912,2611.3,2610.9,0.1912]
[1750053105733,2.05212953,2611.2,2610.9,0.1912]
[1750053105933,0.35903533,2611.1,2610.9,0.1912]
[1750053106124,2.05212953,2611.2,2610.9,0.1912]
[1750053106428,0.3590245,2611.1,2610.9,0.1912]
[1750053106743,2.014,2611.2,2610.9,0.1912]
[1750053107112,0.35902311,2611.1,2610.9,0.1912]
[1750053107317,2.014,2611.2,2610.9,0.1912]
[1750053107747,2.05212953,2611.2,2610.9,0.1912]
[1750053107939,2.014,2611.2,2610.9,0.1912]
[1750053108135,0.35902858,2611.1,2610.9,0.1912]
[1750053108449,0.35902858,2611.1,2610.7,0.03829976]
[1750053108450,2.014,2611.2,2610.7,0.03829976]
[1750053108652,0.3590207,2611.4,2611.0,0.1912]
[1750053108855,10.8306,2611.8,2611.0,0.1912]
[1750053108856,2.014,2611.3,2611.0,0.1912]
[1750053109056,0.35899732,2611.2,2611.0,0.1912]
[1750053109216,2.014,2611.3,2611.0,0.1912]
[1750053109916,0.35901481,2611.2,2611.0,0.1912]
[1750053110145,2.014,2611.3,2611.0,0.1912]
[1750053114223,0.03812953,2611.2,2611.0,0.1912]
[1750053114540,0.03812953,2611.2,2610.7,6.885]
[1750053114747,0.03812953,2611.2,2610.9,0.1912]
[1750053115184,0.55,2611.1,2610.4,0.7614]
[1750053115367,0.22932953,2611.0,2610.5,0.1912]
[1750053115658,1.13722248,2611.0,2610.2,0.7614]
[1750053115858,0.9528,2610.9,2610.4,0.1912]
[1750053116035,0.03812953,2610.8,2610.4,0.1912]
[1750053117861,1.997,2611.1,2610.5,0.8368]
[1750053119344,1.997,2611.1,2610.5,4.66747262]
[1750053119541,1.997,2611.1,2610.6,5.080455]
[1750053119746,1.997,2611.1,2610.6,1.24992142]
[1750053120142,0.85982953,2611.3,2610.6,1.21162073]
[1750053120341,1.997,2611.2,2610.6,1.24992142]
[1750053120734,0.80842953,2611.1,2610.2,0.7621]
[1750053120934,0.80842953,2611.1,2610.3,0.0383049]
[1750053121369,0.80842953,2611.1,2610.4,3.83075342]
[1750053121567,0.80842953,2611.1,2610.3,0.0383049]
[1750053122650,0.80842953,2611.1,2610.2,4.5931874]
[1750053122651,0.80842953,2611.1,2610.2,4.59321337]
[1750053122853,1.08897248,2611.1,2610.3,1.14922134]
[1750053123149,1.08897248,2611.1,2610.4,0.03830445]
[1750053123150,11.08897248,2611.1,2610.4,0.03830445]
[1750053123471,11.05084295,2611.1,2610.4,0.03830445]
[1750053123640,0.03812953,2611.0,2610.4,0.03830445]
[1750053124044,0.7669,2610.9,2610.2,0.7621]
[1750053124269,0.03812953,2610.8,2610.2,0.7621]
[1750053124475,0.03812953,2610.8,2610.1,0.02]
[1750053124846,0.7669,2610.7,2610.1,0.02]
[1750053125040,0.03812953,2610.6,2610.1,0.02]
[1750053125281,1.997,2610.5,2610.1,0.02]
[1750053125485,0.03812953,2610.4,2610.1,0.02]
[1750053125655,0.7656,2610.3,2610.1,0.02]
[1750053126177,0.03812953,2610.2,2610.1,0.02]
[1750053126352,0.58812953,2610.2,2610.1,0.02]
[1750053126553,1.39752953,2610.2,2610.1,0.02]
[1750053126753,12.53728248,2610.2,2610.1,0.02]
[1750053127078,12.49915295,2610.2,2610.1,0.02]
[1750053128180,14.49615295,2610.2,2610.1,0.02]
[1750053128382,12.49915295,2610.2,2610.1,0.02]
[1750053128558,14.49615295,2610.2,2610.1,0.02]
[1750053129339,14.85269936,2610.2,2610.1,0.02]
[1750053129544,14.8527064,2610.2,2610.1,0.02]
[1750053129845,14.49615295,2610.2,2610.1,0.02]
[1750053130187,13.94615295,2610.2,2610.1,0.02]
[1750053130489,13.94715295,2610.2,2610.1,0.02]
[1750053131306,10.8094,2610.2,2610.1,0.02]
[1750053131461,12.8074,2610.2,2610.1,0.02]
[1750053131974,2.8074,2610.2,2610.1,0.02]
[1750053132721,1.998,2610.2,2610.1,0.02]
[1750053132985,11.046,2610.6,2610.2,3.83112405]
[1750053133177,11.046,2610.6,2610.4,0.1912]
[1750053135961,11.046,2610.6,2610.3,0.03830605]
[1750053136190,11.046,2610.6,2610.5,0.1912]
[1750053137290,11.046,2610.6,2610.5,4.02188377]
[1750053137490,0.9769,2611.1,2610.5,1.36091898]
[1750053137491,2.7837,2611.1,2610.5,1.36091898]
[1750053137807,0.03812953,2611.0,2610.5,0.1912]
[1750053138104,0.1912,2610.9,2610.5,0.1912]
[1750053140538,0.8123,2610.7,2610.1,0.02]
[1750053140744,0.8123,2610.7,2610.2,0.1912]
[1750053140745,0.55,2610.5,2610.2,0.1912]
[1750053140884,0.55,2610.5,2610.1,0.02]
[1750053140885,0.1912,2610.2,2610.1,0.02]
[1750053141086,0.7412,2610.2,2610.1,0.02]
[1750053141311,12.87026248,2610.2,2610.1,0.02]
[1750053141529,12.83213295,2610.2,2610.1,0.02]
[1750053143004,14.83013295,2610.2,2610.1,0.02]
[1750053143534,14.63784112,2610.2,2610.1,0.02]
[1750053143689,15.18784809,2610.2,2610.1,0.02]
[1750053143891,14.83013295,2610.2,2610.1,0.02]
[1750053144483,15.18783867,2610.2,2610.1,0.02]
[1750053144725,15.18783876,2610.2,2610.1,0.02]
[1750053144907,14.83013295,2610.2,2610.1,0.02]
[1750053145291,15.18785302,2610.2,2610.1,0.02]
[1750053145486,15.18785085,2610.2,2610.1,0.02]
[1750053145728,14.83013295,2610.2,2610.1,0.02]
[1750053147312,14.28013295,2610.2,2610.1,0.02]
[1750053147528,14.63783247,2610.2,2610.1,0.02]
[1750053147729,14.63783157,2610.2,2610.1,0.02]
[1750053147947,15.18783188,2610.2,2610.1,0.02]
[1750053148115,15.18783998,2610.2,2610.1,0.02]
[1750053148445,14.83013295,2610.2,2610.1,0.02]
[1750053148677,21.68913295,2610.2,2610.1,0.02]
[1750053148942,22.04689657,2610.2,2610.1,0.02]
[1750053149149,21.8556924,2610.2,2610.1,0.02]
[1750053149446,21.85569751,2610.2,2610.1,0.02]
[1750053149610,51.49793295,2610.2,2610.1,0.02]
[1750053150240,51.85570811,2610.2,2610.1,0.02]
[1750053150441,51.85570853,2610.2,2610.1,0.02]
[1750053150657,51.49793295,2610.2,2610.1,0.02]
[1750053151446,51.85570535,2610.2,2610.1,0.02]
[1750053151619,51.49793295,2610.2,2610.1,0.02]
[1750053151821,51.85571236,2610.2,2610.1,0.02]
[1750053152043,51.85571091,2610.2,2610.1,0.02]
[1750053152346,51.85570978,2610.2,2610.1,0.02]
[1750053152519,21.85570976,2610.2,2610.1,0.02]
[1750053152842,21.8556995,2610.2,2610.1,0.02]
[1750053153055,4.42969481,2610.2,2610.1,0.02]
[1750053153210,14.46780345,2610.2,2610.1,0.02]
[1750053153410,14.07193295,2610.2,2610.1,0.02]
[1750053153626,14.97967117,2610.2,2610.1,0.02]
[1750053153954,14.62193295,2610.2,2610.1,0.02]
[1750053154126,14.97966933,2610.2,2610.1,0.02]
[1750053154444,14.62193295,2610.2,2610.1,0.02]
[1750053156058,14.97926347,2610.2,2610.1,0.02]
[1750053156230,14.62193295,2610.2,2610.1,0.02]
[1750053156617,14.97926415,2610.2,2610.1,0.02]
[1750053157044,14.62193295,2610.2,2610.1,0.02]
[1750053157253,14.97926231,2610.2,2610.1,0.02]
[1750053157453,14.97926207,2610.2,2610.1,0.02]
[1750053157655,14.97926221,2610.2,2610.1,0.02]
[1750053157825,14.97859877,2610.2,2610.1,0.02]
[1750053158033,14.62193295,2610.2,2610.1,0.02]
[1750053158229,14.97858358,2610.2,2610.1,0.02]
[1750053158660,15.33523429,2610.2,2610.1,0.02]
[1750053158828,14.97858358,2610.2,2610.1,0.02]
[1750053159032,12.88765063,2610.2,2610.1,0.02]
[1750053159850,2.33765063,2610.2,2610.1,0.02]
[1750053160037,2.37578016,2610.2,2610.1,0.02]
[1750053160248,2.56698016,2610.2,2610.1,0.02]
[1750053160444,0.54785063,2610.2,2610.1,0.02]
[1750053160763,2.33765063,2610.2,2610.1,0.02]
[1750053160978,0.35665063,2610.2,2610.1,0.02]
[1750053162547,0.35665063,2610.2,2610.1,3.85127083]
[1750053162885,0.35665063,2610.2,2610.1,12.83218287]
[1750053163169,0.35665063,2610.2,2610.1,12.79387365]
[1750053167775,0.35665063,2610.2,2610.1,17.51387365]
[1750053168002,0.24058287,2610.2,2610.1,17.51387365]
[1750053168158,0.24058287,2610.2,2610.1,18.06387365]
[1750053169308,0.24058287,2610.2,2610.1,18.25479863]
[1750053170198,0.24058287,2610.2,2610.1,18.06387365]
[1750053170793,0.24058287,2610.2,2610.1,24.90487365]
[1750053171111,1.981,2611.2,2611.0,0.8324]
[1750053171277,1.981,2611.2,2611.0,1.29864421]
[1750053171633,1.981,2611.2,2611.1,0.1912]
[1750053172492,11.05,2611.6,2611.1,11.50792315]
[1750053172673,11.05,2611.6,2611.3,3.82940158]
[1750053172875,11.05,2611.6,2611.5,0.1912]
[1750053173419,11.05,2611.6,2611.5,1.2808842]
[1750053173591,11.05,2611.6,2611.5,0.1912]
[1750053173788,12.0371,2611.6,2611.1,0.1912]
[1750053174177,0.1912,2611.3,2610.8,0.1912]
[1750053175073,0.7512,2611.2,2610.8,0.1912]
[1750053175271,2.01812953,2611.1,2610.8,0.1912]
[1750053176696,2.31418248,2611.1,2610.5,6.834]
[1750053176895,2.50538248,2611.1,2610.6,0.1912]
[1750053177391,2.01812953,2611.1,2610.6,0.03830363]
[1750053177593,2.01812953,2611.1,2610.8,0.1912]
[1750053179169,1.98,2611.1,2610.8,0.1912]
[1750053180139,1.98,2611.1,2610.8,1.0123]
[1750053180339,1.98,2611.1,2610.8,4.65132879]
[1750053180538,1.98,2611.1,2611.0,0.1912]
[1750053184192,1.98,2611.1,2610.5,0.8096]
[1750053184328,0.03812953,2611.0,2610.8,0.1912]
[1750053184529,1.98,2611.1,2610.8,0.1912]
[1750053185935,0.22932953,2611.3,2610.8,0.1912]
[1750053186139,1.965,2611.2,2610.8,0.1912]
[1750053186446,0.8097,2611.4,2610.8,0.1912]
[1750053186447,1.965,2611.4,2610.9,0.85900074]
[1750053186659,1.965,2611.9,2611.5,3.82921692]
[1750053186866,2.1562,2612.0,2611.4,18.92372409]
[1750053187049,2.1562,2612.0,2611.6,0.1912]
[1750053187249,1.965,2612.0,2611.7,11.27756238]
[1750053187451,1.965,2612.0,2611.9,0.1912]
[1750053189579,1.965,2612.0,2611.9,4.01983049]
[1750053189755,1.0164,2612.6,2612.2,3.82807896]
[1750053189756,1.965,2612.6,2612.2,3.82807896]
[1750053189956,1.965,2612.6,2612.2,18.09988478]
[1750053190179,1.965,2612.6,2612.4,0.1912]
[1750053190598,13.01,2612.7,2612.4,0.1912]
[1750053191595,0.03812953,2612.6,2612.4,0.1912]
[1750053191801,0.03812953,2612.6,2612.0,0.8133]
[1750053191802,0.8006,2612.5,2612.0,0.8133]
[1750053192103,0.03812953,2612.4,2611.7,0.8188]
[1750053192261,0.1912,2612.3,2611.8,0.1912]
[1750053192456,0.03812953,2612.2,2611.8,0.1912]
[1750053194296,0.03812953,2612.4,2611.7,3.86713465]
[1750053194464,0.03812953,2612.4,2612.0,0.1912]
[1750053194678,1.965,2612.3,2612.0,0.1912]
[1750053195007,0.03812953,2612.2,2611.5,4.64797456]
[1750053195207,0.03812953,2612.2,2611.9,0.1912]
[1750053195568,2.1562,2612.3,2611.9,0.1912]
[1750053195766,0.1912,2612.3,2611.9,0.1912]
[1750053196085,1.965,2612.2,2612.1,0.1912]
[1750053196262,1.965,2612.2,2611.7,6.816]
[1750053196592,1.965,2612.2,2612.0,0.1912]
[1750053199116,1.964,2612.2,2612.0,0.1912]
[1750053200196,0.1912,2612.4,2612.0,0.1912]
[1750053200494,2.00212953,2612.3,2612.0,0.1912]
[1750053200697,2.00212953,2612.3,2612.0,0.67520145]
[1750053201062,2.00212953,2612.3,2612.0,0.1912]
[1750053202577,1.964,2612.2,2612.1,0.7671]
[1750053203372,1.964,2612.3,2612.1,0.7671]
[1750053203567,1.964,2612.3,2612.2,0.1912]
[1750053204580,1.964,2612.3,2612.2,4.01939079]
[1750053204921,1.964,2612.3,2612.2,5.62574503]
[1750053205800,1.964,2612.3,2612.2,1.79755424]
[1750053205997,11.045,2612.7,2612.2,5.62574503]
[1750053206174,11.045,2612.7,2612.6,0.1912]
[1750053206576,11.045,2612.7,2612.6,0.9959]
[1750053206978,0.02,2612.9,2612.6,1.47827818]
[1750053207286,0.02,2612.9,2612.8,0.1912]
[1750053208028,0.8325,2612.9,2612.8,0.1912]
[1750053208903,0.8325,2612.9,2612.2,2.43315424]
[1750053209209,0.03812953,2612.8,2612.5,0.1912]
[1750053210126,0.87062953,2612.9,2612.5,0.1912]
[1750053210634,1.95,2612.8,2612.7,0.1912]
[1750053213401,1.95,2612.8,2612.6,0.1912]
[1750053214746,1.949,2612.8,2612.6,0.1912]
[1750053214920,0.02,2612.9,2612.6,0.1912]
[1750053215106,1.949,2612.8,2612.6,0.1912]
[1750053217317,0.03812953,2612.7,2612.6,0.1912]
[1750053217631,1.949,2612.8,2612.6,0.1912]
[1750053219842,0.02,2612.9,2612.6,0.1912]
[1750053220041,1.949,2612.8,2612.7,0.1912]
[1750053220412,0.02,2612.9,2612.7,0.1912]
[1750053220611,1.969,2612.9,2612.7,0.1912]
[1750053221444,1.969,2612.9,2612.7,0.67848137]
[1750053221625,1.969,2612.9,2612.7,0.1912]
[1750053223012,0.02,2612.9,2612.7,0.1912]
[1750053223241,1.969,2612.9,2612.7,0.1912]
[1750053225559,0.02,2612.9,2612.7,0.1912]
[1750053225774,0.02,2612.9,2612.7,4.01865405]
[1750053226048,0.02,2612.9,2612.8,0.48342541]
[1750053226236,0.02,2612.9,2612.8,3.86558129]
[1750053226442,0.02,2612.9,2612.8,3.82731169]
[1750053226639,0.02,2612.9,2612.7,11.46731723]
[1750053227147,0.02,2612.9,2612.7,7.63993468]
[1750053227449,0.02,2612.9,2612.8,0.03826769]
[1750053227655,0.02,2612.9,2612.8,1.94940836]
[1750053228652,0.02,2612.9,2612.8,1.91114067]
[1750053229013,0.02,2612.9,2612.7,6.9792]
[1750053229215,0.02,2612.9,2612.7,0.1912]
[1750053229429,0.02,2612.9,2612.4,0.7852]
[1750053229720,0.24932953,2612.9,2612.4,0.9764]
[1750053230141,0.24932953,2612.9,2612.4,7.7634]
[1750053230352,0.24932953,2612.9,2612.4,8.53974]
[1750053231018,0.24932953,2612.9,2612.4,7.75354]
[1750053232137,0.2112,2612.9,2612.4,7.75354]
[1750053232547,0.2112,2612.9,2612.6,7.44873468]
[1750053232747,0.2112,2612.9,2612.7,0.22947002]
[1750053232748,0.02,2612.9,2612.7,0.22947002]
[1750053232961,0.02,2612.9,2612.7,1.08002049]
[1750053233839,0.02,2612.9,2612.8,0.1912]
[1750053234568,0.02,2612.9,2612.7,0.85055047]
[1750053234771,0.02,2612.9,2612.7,1.04175047]
[1750053235074,0.02,2612.9,2612.7,7.82475047]
[1750053235375,0.02,2612.9,2612.8,0.86520505]
[1750053238136,0.02,2612.9,2612.6,6.781]
[1750053239774,0.02,2612.9,2612.5,0.1912]
[1750053239975,0.02,2612.9,2612.5,6.9712]
[1750053240141,0.7532,2612.8,2612.5,0.1912]
[1750053240482,0.7532,2612.8,2611.6,1.49166629]
[1750053240483,0.1912,2612.5,2612.1,0.1912]
[1750053240682,1.934,2612.4,2612.1,0.1912]
[1750053240875,1.934,2612.4,2611.7,0.7935]
[1750053241078,0.03812953,2612.3,2611.9,0.1912]
[1750053241400,0.1912,2612.2,2611.8,6.9682]
[1750053241594,0.1912,2612.2,2611.8,0.1912]
[1750053243952,0.79982953,2612.1,2611.3,0.7771]
[1750053244184,0.79982953,2612.1,2611.1,6.05042346]
[1750053244185,0.1912,2611.8,2611.1,6.05042346]
[1750053244487,0.1912,2611.5,2611.2,0.79624235]
[1750053244654,0.81752953,2612.2,2611.5,0.7601]
[1750053244854,1.934,2612.0,2611.6,0.0382863]
[1750053246344,0.7651,2612.4,2611.6,3.86728868]
[1750053246570,1.934,2612.1,2611.7,6.775]
[1750053246773,1.934,2612.1,2611.8,1.10251187]
[1750053246990,1.934,2612.1,2611.8,1.10251186]
[1750053247211,1.934,2612.2,2611.9,0.7661]
[1750053248313,0.7654,2612.1,2611.6,10.0]
[1750053248521,0.7654,2612.1,2611.7,6.774]
[1750053249206,0.7654,2612.1,2611.7,7.53331]
[1750053249898,0.03812953,2612.0,2611.5,6.7744]
[1750053250067,0.03812953,2612.0,2611.5,6.7734]
[1750053250463,0.7654,2612.1,2611.6,0.03828736]
[1750053250665,0.8104,2612.3,2611.7,7.44873468]
[1750053250865,1.935,2612.2,2611.8,0.7591]
[1750053251061,1.935,2612.2,2611.8,2.2608122]
[1750053251287,1.935,2612.2,2611.8,2.29909791]
[1750053251603,1.935,2612.2,2611.8,2.299095]
[1750053251905,0.03812953,2612.4,2611.8,2.299095]
[1750053251906,1.935,2612.1,2611.8,2.2608122]
[1750053254832,1.935,2612.1,2611.8,2.4520122]
[1750053255225,1.935,2612.1,2611.9,0.24520122]
[1750053255535,1.935,2612.1,2611.8,0.9503]
[1750053259548,1.935,2612.1,2611.8,0.1912]
[1750053261254,0.1912,2612.3,2611.8,0.1912]
[1750053261255,11.038,2612.5,2612.0,11.27712644]
[1750053261561,0.2112,2612.9,2612.3,7.44873468]
[1750053261857,0.2112,2612.9,2612.6,7.44873468]
[1750053261858,0.02,2612.9,2612.6,7.44873468]
[1750053262153,0.02,2612.9,2612.8,0.1912]
[1750053265719,0.02,2612.9,2612.8,6.9512]
[1750053271086,0.02,2612.9,2612.8,0.1912]
[1750053271382,0.02,2612.9,2612.8,6.756]
[1750053273245,0.02,2612.9,2612.8,7.45454704]
[1750053274272,0.02,2612.9,2612.8,7.49281737]
[1750053274846,0.02,2612.9,2612.8,7.68401737]
[1750053275047,0.02,2612.9,2612.8,8.40824704]
[1750053277157,0.02,2612.9,2612.8,22.23555873]
[1750053279260,0.02,2612.9,2612.8,22.42236478]
[1750053282599,0.02,2612.9,2612.8,22.97236478]
[1750053283914,0.02,2612.9,2612.8,29.67229341]
[1750053284062,0.02,2612.9,2612.8,29.67129341]
[1750053284547,0.02,2612.9,2612.8,8.39524704]
[1750053284660,0.02,2612.9,2612.8,5.47955873]
[1750053284854,0.02,2612.9,2612.8,18.39524704]
[1750053285084,0.02,2612.9,2612.8,8.39424704]
[1750053285281,0.02,2612.9,2612.8,18.39424704]
[1750053285480,0.02,2612.9,2612.8,0.88974704]
[1750053285679,0.02,2612.9,2612.8,0.1912]
[1750053285881,0.02,2612.9,2612.8,6.9332]
[1750053288344,0.02,2612.9,2612.8,6.97146696]
[1750053288463,0.02,2612.9,2612.8,6.97146701]
[1750053289106,0.02,2612.9,2612.8,0.22946701]
[1750053289407,0.02,2612.9,2612.8,9.57696744]
[1750053289588,0.02,2612.9,2612.8,9.53870043]
[1750053293198,0.02,2612.9,2612.8,19.53870043]
[1750053293582,0.02,2612.9,2612.8,23.36601212]
[1750053294825,0.02,2612.9,2612.8,28.39723706]
[1750053295027,0.02,2612.9,2612.8,29.18673706]
[1750053295223,0.02,2612.9,2612.8,25.35542537]
[1750053295412,0.02,2612.9,2612.8,29.18273706]
[1750053297632,0.02,2612.9,2612.8,25.35342537]
[1750053298194,0.02,2612.9,2612.8,29.18073706]
[1750053301856,11.04,2613.7,2613.3,4.60846839]
[1750053302026,11.04,2613.7,2613.6,5.22242494]
[1750053302230,11.04,2613.7,2613.6,11.95142494]
[1750053302842,11.04,2613.7,2613.6,6.9202]
[1750053304905,1.939,2613.9,2613.6,11.95142494]
[1750053305074,1.939,2613.9,2613.7,0.82381347]
[1750053305276,0.02,2613.9,2613.8,6.727]
[1750053305487,0.02,2613.9,2613.8,6.9182]
[1750053305776,0.02,2613.9,2613.8,11.94942494]
[1750053307228,0.02,2613.9,2613.8,21.94942494]
[1750053307425,0.02,2613.9,2613.8,13.26262384]
[1750053307573,0.02,2613.9,2613.8,2.46852384]
[1750053307774,0.02,2613.9,2613.8,6.9152]
[1750053308489,0.02,2613.9,2613.8,6.724]
[1750053308692,0.02,2613.9,2613.6,0.1912]
[1750053308890,0.02,2613.9,2613.7,6.724]
[1750053309509,0.7888,2613.8,2613.2,5.03122494]
[1750053309820,0.05812953,2613.9,2613.2,6.9142]
[1750053309821,0.7888,2613.5,2613.2,6.9142]
[1750053310022,1.904,2613.4,2613.2,11.94542494]
[1750053310197,1.904,2613.4,2613.3,1.19454249]
[1750053310395,0.7888,2613.5,2613.3,1.19454249]
[1750053310716,2.6928,2613.5,2613.3,1.19454249]
[1750053310918,0.7888,2613.5,2613.4,5.03122494]
[1750053311121,1.904,2613.6,2613.4,11.94442494]
[1750053311622,1.904,2613.6,2613.4,6.9132]
[1750053311824,1.904,2613.6,2613.4,0.1912]
[1750053312029,1.904,2613.6,2613.5,6.721]
[1750053312203,1.904,2613.6,2613.4,6.721]
[1750053313633,1.904,2613.6,2613.4,11.75222494]
[1750053313834,1.904,2613.6,2613.4,12.94656743]
[1750053314400,1.904,2613.6,2613.4,13.13776743]
[1750053315013,1.904,2613.6,2613.4,6.9122]
[1750053317234,1.904,2613.6,2613.3,6.718]
[1750053317395,2.0952,2613.6,2613.3,6.718]
[1750053325247,2.0952,2613.6,2613.1,0.1912]
[1750053325448,0.1912,2613.2,2612.7,0.1912]
[1750053325644,0.83102953,2613.1,2612.7,0.1912]
[1750053326267,0.7929,2613.1,2612.7,0.1912]
[1750053326590,0.7929,2613.1,2612.7,5.03122494]
[1750053326728,0.1912,2613.3,2612.9,5.03122494]
[1750053327040,0.55,2613.8,2613.1,5.03122494]
[1750053327041,1.904,2613.5,2613.1,5.03122494]
[1750053327246,1.904,2613.5,2613.3,5.03122494]
[1750053328894,1.904,2613.5,2613.1,5.22242494]
[1750053329098,0.7732,2613.5,2613.2,6.71]
[1750053331211,0.7732,2613.5,2613.1,6.8992]
[1750053332318,0.7732,2613.5,2613.1,0.1912]
[1750053332526,0.03812953,2613.4,2613.1,0.1912]
[1750053333118,0.7732,2613.5,2613.1,0.1912]
[1750053334183,0.7732,2613.5,2613.1,0.93334425]
[1750053339849,0.7751,2613.3,2612.5,10.0]
[1750053340002,0.1912,2613.1,2612.7,0.1912]
[1750053340208,0.1912,2613.1,2612.7,6.8932]
[1750053340550,0.1912,2613.1,2612.8,5.03122494]
[1750053340695,0.1912,2613.1,2612.9,1.19244249]
[1750053346127,0.1912,2613.1,2612.7,0.1912]
[1750053346329,0.1912,2613.1,2612.9,6.699]
[1750053348920,0.1912,2613.1,2612.9,6.696]
[1750053352235,0.1912,2613.1,2612.7,0.22947043]
[1750053352435,0.7751,2613.3,2612.8,11.72622494]
[1750053352647,1.891,2613.3,2613.0,5.03122494]
[1750053353047,0.1912,2613.4,2613.2,5.03122494]
[1750053353048,1.891,2613.4,2613.2,5.03122494]
[1750053353227,1.891,2613.4,2613.2,5.22242494]
[1750053353578,1.891,2613.4,2613.3,0.52606919]
[1750053353758,1.891,2613.4,2613.2,0.1912]
[1750053353960,0.86612953,2613.3,2612.4,1.1367589]
[1750053354261,0.1912,2613.0,2612.7,0.1912]
[1750053359375,0.82002953,2612.9,2612.0,9.75122494]
[1750053359542,0.7819,2612.7,2612.0,12.4739578]
[1750053359914,0.03812953,2612.6,2612.2,0.1912]
[1750053361484,0.7819,2612.7,2612.4,5.03122494]
[1750053361683,0.7819,2612.7,2612.5,0.50695044]
[1750053361902,0.03812953,2612.6,2612.3,6.687]
[1750053362071,0.9731,2612.7,2612.3,6.687]
[1750053362374,0.03812953,2612.6,2612.3,6.687]
[1750053363100,0.03812953,2612.6,2612.2,6.8772]
[1750053363274,0.03812953,2612.6,2612.0,6.9206578]
[1750053363476,0.1912,2612.4,2612.1,6.686]
[1750053364174,1.878,2613.0,2612.2,5.85732494]
[1750053364499,2.10732953,2613.0,2612.5,5.03122494]
[1750053364663,2.10732953,2613.0,2612.5,5.22242494]
[1750053365203,0.1912,2613.0,2612.5,11.94569766]
[1750053365369,2.0692,2613.0,2612.6,1.19456977]
[1750053365770,2.0692,2613.0,2612.5,11.90742494]
[1750053366385,2.0692,2613.0,2612.5,0.1912]
[1750053366703,0.03812953,2612.9,2612.5,0.1912]
[1750053366868,0.7548,2612.8,2612.4,6.684]
[1750053367068,0.946,2612.8,2612.4,6.684]
[1750053367707,0.03812953,2612.7,2612.3,0.1912]
[1750053367925,0.7739,2612.6,2611.8,10.57242494]
[1750053368126,0.22932953,2612.5,2612.0,0.1912]
[1750053368415,1.878,2612.4,2612.0,5.22242494]
[1750053368570,1.878,2612.4,2612.0,5.26070484]
[1750053369289,1.878,2612.4,2612.0,5.22242494]
[1750053369463,0.03812953,2612.3,2612.0,0.1912]
[1750053369667,1.0159,2612.2,2611.7,0.1912]
[1750053369869,0.03812953,2612.1,2611.5,4.72]
[1750053370064,0.1912,2612.0,2611.6,0.1912]
[1750053370719,1.878,2611.9,2611.6,0.1912]
[1750053371007,1.878,2611.9,2611.6,0.22948665]
[1750053371568,1.878,2611.9,2611.7,5.03122494]
[1750053373016,0.1912,2612.0,2611.7,7.0534961]
[1750053373307,1.878,2612.0,2611.9,5.03122494]
[1750053373467,1.878,2612.0,2611.8,0.1912]
[1750053373667,1.878,2612.0,2611.7,7.0534961]
[1750053373867,1.878,2612.0,2611.8,5.06950996]
[1750053374070,1.878,2612.0,2611.8,5.03122494]
[1750053374368,0.03812953,2611.9,2611.6,6.68]
[1750053374667,0.1912,2611.9,2611.6,11.71122494]
[1750053375112,0.1912,2611.9,2611.6,12.90146743]
[1750053375885,1.878,2612.0,2611.6,12.90146743]
[1750053376088,0.1912,2612.0,2611.8,5.03122494]
[1750053376282,0.1912,2612.0,2611.6,8.65034249]
[1750053376486,0.22932953,2612.0,2611.5,0.1912]
[1750053376715,0.7688,2611.9,2611.2,4.72]
[1750053377041,0.7972,2611.6,2611.2,4.9112]
[1750053377248,0.7972,2611.6,2611.1,0.02]
[1750053377249,2.10732953,2611.5,2611.1,0.02]
[1750053377389,2.10732953,2611.5,2611.1,6.698]
[1750053377591,2.39778248,2611.5,2611.1,0.02]
[1750053378214,0.7673,2611.4,2611.1,0.02]
[1750053378423,0.22932953,2611.3,2611.1,0.02]
[1750053380820,0.1912,2611.3,2611.1,0.02]
[1750053382622,0.03812953,2611.2,2611.1,0.02]
[1750053383032,0.82942953,2611.2,2611.1,0.02]
[1750053383423,1.93149248,2611.2,2611.1,0.02]
[1750053387559,2.48149248,2611.2,2611.1,0.02]
[1750053388115,12.48149248,2611.2,2611.1,0.02]
[1750053388309,12.44336295,2611.2,2611.1,0.02]
[1750053390597,14.32236295,2611.2,2611.1,0.02]
[1750053391195,12.44336295,2611.2,2611.1,0.02]
[1750053391383,14.68196354,2611.2,2611.1,0.02]
[1750053391564,2.23857825,2611.2,2611.1,0.02]
[1750053391745,1.879,2611.2,2611.1,0.02]
[1750053392635,2.23853495,2611.2,2611.1,0.02]
[1750053392836,1.879,2611.2,2611.1,0.02]
[1750053393037,2.23853504,2611.2,2611.1,0.02]
[1750053393277,1.879,2611.2,2611.1,0.02]
[1750053393673,2.23853274,2611.2,2611.1,7.46455194]
[1750053393973,1.879,2611.2,2611.1,1.03355519]
[1750053394283,1.879,2611.2,2611.1,0.02]
[1750053394574,3.1914,2611.2,2611.1,0.02]
[1750053394938,3.22952953,2611.2,2611.1,0.02]
[1750053395134,3.21752953,2611.2,2611.1,0.02]
[1750053396674,13.1794,2611.2,2611.1,0.02]
[1750053396856,15.60174,2611.2,2611.1,0.02]
[1750053397587,15.95775767,2611.2,2611.1,0.02]
[1750053397908,15.60174,2611.2,2611.1,0.02]
[1750053398975,15.95774569,2611.2,2611.1,0.02]
[1750053399176,15.60174,2611.2,2611.1,0.02]